fUST/lending_fUST_20240411
["ID","MTS","AMOUNT","RATE_DAILY","PERIOD"]
[322121730,1712812167431,-203.96205847,0.00026019,3]
[322121731,1712812167452,-2121.15236818,0.00026021,2]
[322121732,1712812167472,-291.67835239,0.00026021,2]
[322121733,1712812167496,-229.27466344,0.00026021,2]
[322121734,1712812167516,-1671.38044396,0.00026022,2]
[322121735,1712812167536,-225.5768185,0.00026022,2]
[322121736,1712812167557,-518.5419639,0.00026022,2]
[322121737,1712812167581,-602.31911649,0.00026022,2]
[322121738,1712812167602,-246.63761013,0.00026022,2]
[322121739,1712812167622,-1308.15892502,0.00026022,2]
[322121740,1712812167656,-411.1728042,0.00026022,2]
[322121741,1712812167680,-154.98450155,0.00026022,2]
[322121742,1712812167701,-209.13909189,0.00026022,2]
[322121743,1712812167721,-160.86128477,0.00026022,2]
[322121744,1712812167743,-213.64248224,0.00026022,2]
[322121745,1712812167763,-243.4689664,0.00026022,2]
[322121746,1712812167787,-254.76511583,0.00026022,2]
[322121747,1712812167809,-158.51515046,0.00026022,2]
[322121748,1712812167840,-294.14905566,0.00026022,2]
[322121749,1712812167865,-179.64211488,0.00026022,2]
[322121750,1712812167976,-167.06533239,0.00026022,2]
[322121751,1712812167998,-209.82604441,0.00026022,2]
[322121752,1712812168018,-155.49310918,0.00026022,2]
[322121753,1712812168040,-245.13013663,0.00026022,2]
[322121754,1712812168064,-218.22626549,0.00026022,2]
[322121755,1712812168086,-155.43645785,0.00026022,2]
[322121756,1712812168109,-155.38550979,0.00026022,2]
[322121757,1712812168131,-216.45996331,0.00026022,2]
[322121758,1712812168158,-155.38658969,0.00026022,2]
[322121759,1712812168179,-245.59351282,0.00026022,2]
[322121760,1712812168199,-154.98450155,0.00026022,2]
[322121761,1712812168220,-181.27846716,0.00026022,2]
[322121762,1712812168242,-448.23554672,0.00026022,2]
[322121763,1712812168262,-360.85132278,0.00026022,2]
[322121764,1712812168281,-500.0,0.00026022,2]
[322121765,1712812168300,-500.0,0.00026022,2]
[322121766,1712812168320,-500.0,0.00026022,2]
[322121767,1712812168340,-462.30426529,0.00026022,2]
[322121768,1712812168361,-188.05108026,0.00026022,2]
[322121769,1712812168381,-500.0,0.00026022,2]
[322121770,1712812168402,-236.10021349,0.00026022,2]
[322121771,1712812168423,-5983.19899425,0.00026023,2]
[322121772,1712812168444,-757.0250291,0.0002635,3]
[322121773,1712812168466,-587.0,0.0002644,2]
[322121774,1712812168487,-154.92253873,0.00027,2]
[322121775,1712812168510,-587.0,0.00027117,2]
[322121776,1712812168532,-161.0120777,0.0002737,2]
[322121777,1712812168555,-500.0,0.00027397,2]
[322121778,1712812168575,-186.29141304,0.00027397,2]
[322121779,1712812168596,-500.0,0.00027397,2]
[322121780,1712812168616,-500.0,0.00027397,2]
[322121781,1712812168637,-500.0,0.00027397,2]
[322121782,1712812168657,-500.0,0.00027397,2]
[322121783,1712812168677,-500.0,0.00027397,2]
[322121784,1712812168697,-500.0,0.00027397,2]
[322121785,1712812168717,-293.982178,0.00027397,2]
[322121786,1712812168736,-166.666666,0.00027397,2]
[322121787,1712812168756,-196.028104,0.00027397,2]
[322121788,1712812168778,-916.10190537,0.00027398,2]
[322121789,1712812168798,-188.31719846,0.00027398,2]
[322121790,1712812168819,-276.09365168,0.000274,2]
[322121791,1712812168839,-157.434215,0.00027498,2]
[322121792,1712812168862,-406.71490912,0.00027498,2]
[322121793,1712812176945,283.48016999,0.00021963,2]
[322121840,1712812232035,-240.81178809,0.00022404,2]
[322121842,1712812232045,-154.93802479,0.00022405,2]
[322121843,1712812232056,-154.92253873,0.00022406,2]
[322121845,1712812232065,-2761.17764839,0.00022409,2]
[322121856,1712812237993,-1030.46255383,0.00022409,2]
[322121857,1712812238003,-1494.03785259,0.00022412,2]
[322121858,1712812238014,-192.65780692,0.00022412,2]
[322121859,1712812238024,-155.43220328,0.0002342,2]
[322121861,1712812238034,-1464.76475019,0.00023922,2]
[322121863,1712812238044,-675.51364115,0.00024184,2]
[322121866,1712812238053,-2495.883819,0.00024596,2]
[322121869,1712812238063,-622.77568206,0.00025393,2]
[322121870,1712812238072,-300.0,0.00026122,2]
[322121872,1712812238081,-300.0,0.00026122,2]
[322121874,1712812238091,-156.60296207,0.00026123,2]
[322121876,1712812238101,-620.1387841,0.00026663,2]
[322121877,1712812238112,-234.15377085,0.00026948,2]
[322121878,1712812238121,-287.37512764,0.00027,2]
[322121879,1712812238131,-528.33119451,0.00027471,2]
[322121880,1712812238141,-3375.41405612,0.00027498,2]
[322121881,1712812238152,-155.88260566,0.00027498,2]
[322121882,1712812238162,-155.430717,0.00027498,2]
[322121883,1712812238172,-227.3739437,0.00027498,2]
[322121884,1712812238182,-284.47700355,0.00027498,2]
[322121885,1712812238193,-299.12969198,0.00027498,2]
[322121886,1712812238202,-179.83138375,0.00027498,2]
[322121887,1712812238212,-200.0,0.00027498,2]
[322121888,1712812238222,-1086.3923283,0.00027498,2]
[322121889,1712812238231,-219.06785182,0.00027498,2]
[322121890,1712812238241,-2766.69080751,0.00027498,2]
[322121891,1712812238250,-3746.93509095,0.00027498,2]
[322121892,1712812238260,-296.30134433,0.00027498,2]
[322121893,1712812238271,-801.13928345,0.00027498,2]
[322121894,1712812238281,-245.77355025,0.00027498,2]
[322121895,1712812238291,-490.67957045,0.00027498,2]
[322121896,1712812238302,-420.52359928,0.00027498,2]
[322121897,1712812238312,-470.227429,0.00027498,2]
[322121898,1712812238322,-304.95310847,0.00027498,2]
[322121899,1712812238331,-21297.75235519,0.00027498,2]
[322121900,1712812238341,-283.73543725,0.00027498,2]
[322121901,1712812238350,-438.00655096,0.00027498,2]
[322121902,1712812238359,-796.70802933,0.00027498,2]
[322121903,1712812238368,-188.41737304,0.00027498,2]
[322121904,1712812238377,-248.56344425,0.00027498,2]
[322121905,1712812238386,-871.10795314,0.00027498,2]
[322121906,1712812238395,-156.56577036,0.00027498,2]
[322121907,1712812238404,-658.1319147,0.00027498,2]
[322121908,1712812238414,-233.62114203,0.00027498,2]
[322121909,1712812238423,-263.74952097,0.00027498,2]
[322121910,1712812238431,-947.60613541,0.00027498,2]
[322121911,1712812238440,-331.24769777,0.00027498,2]
[322121912,1712812238449,-207.33993593,0.00027498,2]
[322121913,1712812238458,-364.77396862,0.00027498,2]
[322121914,1712812238467,-777.00349469,0.00027498,2]
[322121915,1712812238476,-407.88528427,0.00027499,2]
[322121916,1712812238485,-3505.89369639,0.00027499,2]
[322121917,1712812238494,-211.94080866,0.00027499,2]
[322121918,1712812238503,-1486.45349515,0.00027499,2]
[322121919,1712812238512,-2742.47361432,0.00027499,2]
[322121920,1712812238522,-282.46191731,0.00027499,2]
[322121921,1712812238531,-562.79218199,0.00027499,2]
[322121922,1712812238540,-237.01174804,0.00027499,2]
[322121923,1712812238549,-242.71374682,0.00027499,2]
[322121924,1712812238559,-225.7911753,0.00027499,2]
[322121925,1712812238568,-379.88839512,0.00027499,2]
[322121926,1712812238578,-333.48374639,0.00027499,2]
[322121927,1712812238587,-548.9788122,0.00027499,2]
[322121928,1712812238596,-21120.35410021,0.000275,2]
[322121929,1712812238605,-799.19959429,0.000275,17]
[322121930,1712812238614,-250.56849257,0.000278,2]
[322121931,1712812238624,-250.56849257,0.000278,2]
[322121932,1712812238633,-250.56849257,0.000278,2]
[322121934,1712812238643,-166.666666,0.00028038,2]
[322121936,1712812238652,-420.0,0.00028266,2]
[322121937,1712812238661,-166.666666,0.00028679,2]
[322121938,1712812238670,-420.0,0.00028734,2]
[322121939,1712812238679,-2717.62011284,0.0002877,2]
[322121940,1712812238689,-1464.76475019,0.00028922,2]
[322121941,1712812238698,-166.666666,0.00029321,2]
[322121942,1712812238707,-166.666666,0.00029962,2]
[322121944,1712812238716,-490.60996816,0.0003,5]
[322121946,1712812238725,-200.24011133,0.0003,2]
[322121948,1712812238734,-8108.57311496,0.0003,7]
[322121950,1712812238743,-330.0,0.0003,2]
[322121952,1712812238752,-276.09365168,0.00030452,2]
[322121954,1712812238761,-587.0,0.00030587,2]
[322121955,1712812238771,-166.666666,0.00030603,2]
[322121957,1712812238781,-587.0,0.00031608,2]
[322121959,1712812238796,-154.92253873,0.0003189,7]
[322121961,1712812238805,-165.57639,0.00032126,2]
[322121963,1712812238814,-319.91534022,0.000328,30]
[322121965,1712812238823,-2000.0,0.000328,2]
[322121967,1712812238832,-2000.0,0.0003281,2]
[322121969,1712812238841,-3296.143734,0.0003282,2]
[322121971,1712812238851,-823.0,0.00033097,2]
[322121973,1712812238860,-293.982178,0.00033165,2]
[322121975,1712812238870,-196.028104,0.00033165,2]
[322121977,1712812238879,-276.09365168,0.00033503,2]
[322121978,1712812238888,-765.80599276,0.00034026,2]
[322121980,1712812238899,-823.0,0.00034769,2]
[322121982,1712812238907,-150.92453773,0.00034884,2]
[322121984,1712812238916,-596.36211063,0.00035,2]
[322121986,1712812238926,-738.81709765,0.000351,2]
[322121988,1712812238935,-301.84907546,0.0003547,4]
[322121990,1712812238944,-1018.927356,0.000355,20]
[322121992,1712812238953,-192.1009486,0.00035615,7]
[322121994,1712812238962,-412.4161137,0.00035615,7]
[322121996,1712812238970,-294.87903439,0.00035615,7]
[322121998,1712812238979,-500.0,0.00035615,7]
[322122000,1712812238989,-370.83006405,0.00035615,7]
[322122002,1712812238999,-605.88742391,0.00035615,7]
[322122004,1712812239008,-2974.994695,0.00035616,120]
[322122006,1712812239017,-186.49938093,0.00035684,90]
[322122007,1712812239025,-448.446587,0.00035714,2]
[322122009,1712812239035,-1074.0,0.00035814,2]
[322122011,1712812239044,-156.53177183,0.00035998,4]
[322122013,1712812239053,-25540.17136661,0.00036,14]
[322122015,1712812239062,-1000.0,0.00036,20]
[322122017,1712812239071,-603.69815092,0.00036066,7]
[322122019,1712812239080,-2449.49617815,0.00036187,5]
[322122021,1712812239089,-255.71146751,0.0003624,2]
[322122023,1712812239098,-150.45881885,0.0003654,7]
[322122025,1712812239107,-276.09365168,0.00036555,2]
[322122027,1712812239117,-1207.39630185,0.00036979,30]
[322122029,1712812239126,-3020.86314347,0.00037,2]
[322122031,1712812239135,-2696.57676849,0.00037681,30]
[322122033,1712812239144,-1152.0,0.00038245,2]
[322122035,1712812239153,-157.03884393,0.00038262,7]
[322122037,1712812239162,-27517.0635114,0.00038356,2]
[322122038,1712812239172,-153.67451859,0.00038825,7]
[322122040,1712812239181,-2000.0,0.00038899,2]
[322122042,1712812239190,-3000.04998948,0.000389,2]
[322122044,1712812239199,-293.982178,0.00038933,2]
[322122046,1712812239208,-196.028104,0.00038933,2]
[322122048,1712812239217,-1793.14247666,0.00038999,5]
[322122186,1712812243307,-925.31693807,0.00024595,2]
[322122187,1712812243316,-868.7735191,0.00026121,2]
[322122188,1712812243326,-1854.38399609,0.00026121,2]
[322122189,1712812243335,-1617.89538684,0.00026121,2]
[322122190,1712812243344,-435.93996497,0.00026121,2]
[322122191,1712812243353,-2433.31628863,0.00038999,5]
[322122264,1712812838750,1600.0,0.0002,2]
[322122268,1712813144838,-154.93802479,0.00023922,2]
[322122269,1712813144870,-154.93802479,0.00023922,2]
[322122270,1712813152471,548.9788122,0.00023922,2]
[322122271,1712813154618,739.26908864,0.00023922,2]
[322122273,1712813232937,-543.0211878,0.00023915,2]
[322122281,1712813326058,24900.0,0.00021914,2]
[322122282,1712813371182,-211.50234221,0.00022803,2]
[322122283,1712813371208,-925.31693807,0.00022803,2]
[322122284,1712813371229,-283.48016999,0.00022804,2]
[322122285,1712813371248,-1087.73357907,0.00022805,2]
[322122286,1712813371268,-282.46191731,0.00022806,2]
[322122287,1712813371289,-154.93802479,0.00022806,2]
[322122288,1712813371310,-1486.45349515,0.00022806,2]
[322122289,1712813371332,-470.227429,0.00022806,2]
[322122290,1712813371353,-887.19168702,0.00022806,2]
[322122291,1712813371372,-407.88528427,0.00022806,2]
[322122292,1712813371392,-548.9788122,0.00022807,2]
[322122293,1712813371412,-1494.03785259,0.00022807,2]
[322122294,1712813371432,-154.93802479,0.00022808,2]
[322122295,1712813371452,-154.93802479,0.00022808,2]
[322122296,1712813371473,-874.8351986,0.00022809,2]
[322122297,1712813371493,-300.0,0.00022907,2]
[322122298,1712813371513,-300.0,0.00022907,2]
[322122299,1712813371534,-154.93802479,0.00022907,2]
[322122300,1712813371553,-492.01379833,0.00022907,2]
[322122301,1712813371575,-2766.69080751,0.00022908,2]
[322122302,1712813371596,-207.33993593,0.00022908,2]
[322122303,1712813371616,-947.60613541,0.00022909,2]
[322122304,1712813371636,-22755.98720092,0.00022909,2]
[322122305,1712813371656,-364.77396862,0.00022909,2]
[322122306,1712813371677,-661.7207907,0.00022913,2]
[322122307,1712813371697,-27592.41027506,0.00022918,2]
[322122308,1712813371717,-2495.883819,0.0002292,2]
[322122309,1712813371738,-242.86748276,0.00023,2]
[322122310,1712813371758,-1312.17904408,0.0002391,2]
[322122311,1712813371780,-193.09908054,0.0002391,2]
[322122312,1712813371801,-3919.93115084,0.00023911,2]
[322122313,1712813371823,-505.64234481,0.00023911,2]
[322122314,1712813371846,-339.05167979,0.00023911,2]
[322122315,1712813371867,-155.43220328,0.00023915,2]
[322122316,1712813371886,-478.4133243,0.00023916,2]
[322122317,1712813371906,-1050.803295,0.0002393,2]
[322122318,1712813371926,-156.60296207,0.00024022,2]
[322122319,1712813371946,-380.0,0.00024658,2]
[322122320,1712813371967,-200.0,0.00024658,2]
[322122321,1712813371988,-420.0,0.00024869,2]
[322122322,1712813372008,-420.0,0.00025198,2]
[322122323,1712813372028,-528.33119451,0.00025267,2]
[322122324,1712813372048,-233.62114203,0.00025292,2]
[322122325,1712813372068,-2829.64111568,0.00025295,2]
[322122326,1712813372087,-165.5763908,0.00025303,2]
[322122327,1712813372107,-4868.39663887,0.00026208,2]
[322122328,1712813372133,-420.52359928,0.00026304,2]
[322122329,1712813372155,-801.13928345,0.00026304,2]
[322122330,1712813372174,-248.56344425,0.00026304,2]
[322122331,1712813372194,-777.00349469,0.00026304,2]
[322122332,1712813372215,-155.430717,0.00026304,2]
[322122333,1712813372236,-156.51628577,0.00026304,2]
[322122334,1712813372257,-3375.41405612,0.00026305,2]
[322122335,1712813372277,-4432.1840762,0.00026308,2]
[322122336,1712813372296,-188.41737304,0.00026314,2]
[322122337,1712813372317,-263.74952097,0.00026314,2]
[322122338,1712813372336,-179.83138375,0.00026314,2]
[322122339,1712813372356,-283.73543725,0.00026314,2]
[322122340,1712813372376,-490.67957045,0.00026314,2]
[322122341,1712813372397,-304.95310847,0.00026314,2]
[322122342,1712813372417,-156.56577036,0.00026314,2]
[322122343,1712813372437,-331.24769777,0.00026314,2]
[322122344,1712813372457,-219.06785182,0.00026314,2]
[322122345,1712813372478,-438.00655096,0.00026314,2]
[322122346,1712813372498,-3746.93509095,0.00026314,2]
[322122347,1712813372518,-658.1319147,0.00026314,2]
[322122348,1712813372539,-5455.68809204,0.000264,9]
[322122349,1712813372558,-287.37512764,0.00027,2]
[322122350,1712813372579,-587.0,0.00027,2]
[322122351,1712813372599,-211.94080866,0.00027187,2]
[322122352,1712813372618,-562.79218199,0.00027189,2]
[322122353,1712813372638,-379.88839512,0.00027189,2]
[322122354,1712813372658,-333.48374639,0.00027189,2]
[322122355,1712813372678,-237.01174804,0.00027189,2]
[322122356,1712813372698,-200.0,0.00027189,2]
[322122357,1712813372718,-412.4161137,0.0002719,2]
[322122358,1712813372737,-192.1009486,0.0002719,2]
[322122359,1712813372758,-294.87903439,0.0002719,2]
[322122360,1712813372779,-370.83006405,0.0002719,2]
[322122361,1712813372800,-12973.79492665,0.00027191,2]
[322122425,1712813432473,-154.93802479,0.00022801,2]
[322122427,1712813432482,-704.32526854,0.00022802,2]
[322122507,1712813438648,-1216.42431591,0.00022802,2]
[322122518,1712813440231,-399.26013567,0.00022802,2]
[322122519,1712813440240,-1494.03785259,0.00022907,2]
[322122520,1712813440250,-205.25610193,0.00024181,2]
[322122521,1712813440377,-470.92524831,0.00024181,2]
[322122522,1712813440387,-1955.94707373,0.00025089,2]
[322122523,1712813440396,-622.80906751,0.0002539,2]
[322122524,1712813440408,-620.14045338,0.0002666,2]
[322122525,1712813440417,-225.7911753,0.00027189,2]
[322122526,1712813440427,-347.95242762,0.00027189,2]
[322122527,1712813440438,-155.85163354,0.00027189,2]
[322122528,1712813440448,-284.46151749,0.00027189,2]
[322122529,1712813440458,-300.0,0.00027189,2]
[322122530,1712813440468,-300.0,0.00027189,2]
[322122531,1712813440477,-7026.31447386,0.0002719,2]
[322122532,1712813440486,-9511.78677673,0.00027191,2]
[322122533,1712813440495,-389.20558663,0.00027195,2]
[322122534,1712813440504,-188.31719846,0.00027296,2]
[322122535,1712813440513,-908.61129544,0.000273,2]
[322122536,1712813440524,-177.296866,0.00027397,2]
[322122537,1712813440534,-166.666666,0.00027397,2]
[322122538,1712813440543,-200.30519,0.00027397,2]
[322122539,1712813440552,-154.98198542,0.00027496,2]
[322122540,1712813440561,-155.55417029,0.00027496,2]
[322122541,1712813440570,-241.85829277,0.00027496,2]
[322122542,1712813440579,-524.86962543,0.00027496,4]
[322122543,1712813440588,-603.14533891,0.00027496,2]
[322122544,1712813440598,-383.07969193,0.00027496,2]
[322122545,1712813440607,-400.0,0.00027496,2]
[322122546,1712813440616,-799.7051208,0.00028037,17]
[322122547,1712813440625,-166.666666,0.00028038,2]
[322122548,1712813440634,-166.666666,0.00028679,2]
[322122549,1712813440643,-166.666666,0.00029321,2]
[322122550,1712813440652,-4868.39663883,0.00029381,2]
[322122551,1712813440661,-420.0,0.00029389,2]
[322122552,1712813440670,-420.0,0.00029908,2]
[322122553,1712813440680,-166.666666,0.00029962,2]
[322122554,1712813440689,-330.0,0.0003,2]
[322122555,1712813440699,-1955.94707373,0.00030089,2]
[322122556,1712813440708,-166.666666,0.00030603,2]
[322122557,1712813440717,-889.8593175,0.00030604,2]
[322122558,1712813440726,-587.0,0.00031766,2]
[322122559,1712813440735,-176.186956,0.00031945,2]
[322122560,1712813440744,-540.65,0.00032,2]
[322122561,1712813440755,-633.49296587,0.00032135,2]
[322122562,1712813440765,-4868.39663883,0.00032554,2]
[322122563,1712813440775,-2000.0,0.000328,2]
[322122564,1712813440787,-319.91534022,0.00032809,30]
[322122565,1712813440796,-2000.0,0.0003281,2]
[322122566,1712813440805,-3296.143734,0.0003282,2]
[322122567,1712813440815,-587.0,0.00032899,2]
[322122568,1712813440824,-177.296866,0.00033165,2]
[322122569,1712813440833,-200.30519,0.00033165,2]
[322122570,1712813440842,-823.0,0.00034336,2]
[322122571,1712813440851,-150.93962415,0.00034538,2]
[322122572,1712813440860,-596.36211063,0.00035088,2]
[322122573,1712813440869,-1955.94707373,0.00035089,2]
[322122574,1712813440878,-765.92654399,0.00035097,30]
[322122575,1712813440887,-6341.88989648,0.00035099,4]
[322122576,1712813440896,-301.8792483,0.00035119,4]
[322122577,1712813440905,-1238.43217208,0.00035148,4]
[322122578,1712813440913,-232.10035941,0.000355,20]
[322122581,1712813443354,-537.0,0.000355,20]
[322122582,1712813443412,-249.82699659,0.000355,20]
[322122583,1712813443421,-300.884532,0.000356,18]
[322122584,1712813443431,-2974.994695,0.00035616,120]
[322122585,1712813443440,-603.7584966,0.00035709,7]
[322122586,1712813443449,-2309.52393708,0.00035726,2]
[322122587,1712813443461,-2558.87270175,0.00035726,2]
[322122588,1712813443470,-1050.803295,0.00035895,2]
[322122589,1712813443479,-1000.0,0.00036,20]
[322122590,1712813443489,-823.0,0.00036189,2]
[322122591,1712813443498,-234.15377085,0.00036258,4]
[322122592,1712813443508,-1207.5169932,0.00036613,30]
[322122593,1712813443517,-160.15840184,0.0003669,7]
[322122594,1712813443526,-160.15840184,0.00036868,7]
[322122595,1712813443536,-262.22999317,0.00036998,4]
[322122596,1712813443545,-973.50518926,0.00036998,4]
[322122597,1712813443554,-299.11420592,0.00036998,4]
[322122598,1712813443563,-227.35845764,0.00036998,4]
[322122599,1712813443572,-279.36256969,0.00036998,4]
[322122600,1712813443581,-365.16769138,0.00036998,4]
[322122601,1712813443590,-324.76490035,0.00036998,4]
[322122602,1712813443600,-878.72740564,0.00036998,4]
[322122603,1712813443609,-242.65723842,0.00036998,4]
[322122604,1712813443619,-430.25029913,0.00036998,4]
[322122605,1712813443628,-652.02347168,0.00036998,4]
[322122606,1712813443637,-176.65160974,0.00036999,4]
[322122607,1712813443646,-1081.45013566,0.00036999,120]
[322122608,1712813443655,-3020.86314347,0.00037,2]
[322122609,1712813443664,-1152.0,0.00037114,2]
[322122610,1712813443674,-160.15840186,0.00037347,7]
[322122611,1712813443684,-157.43330698,0.00037413,7]
[322122612,1712813443694,-16888.30718415,0.00037729,5]
[322122626,1712814437094,-435.93996497,0.00027046,2]
[322122627,1712814437113,-154.92253873,0.00027046,2]
[322122628,1712814437133,-158.59081426,0.00027047,2]
[322122629,1712814437152,-729.36550887,0.00027047,2]
[322122639,1712814632361,-154.92253873,0.00024946,2]
[322122641,1712814632372,-1197.77953564,0.00024947,2]
[322122643,1712814632418,-374.65557478,0.00024947,2]
[322122644,1712814632430,-1494.03785259,0.00027043,2]
[322122645,1712814632443,-586.28,0.00027044,2]
[322122646,1712814632453,-220.25791032,0.00027047,2]
[322122647,1712814632466,-18.71485186,0.00027047,4]
[322122681,1712814638969,-2281.6632985,0.00027047,4]
[322122683,1712814638978,-208.48111999,0.0002708,2]
[322122685,1712814638987,-249.11887562,0.00027086,2]
[322122687,1712814638996,-1067.4359034,0.00027132,2]
[322122689,1712814639006,-155.44117756,0.00027191,2]
[322122690,1712814639015,-200.5726793,0.00027238,2]
[322122691,1712814639024,-176.186956,0.00027267,2]
[322122692,1712814639035,-267.612199,0.00027397,2]
[322122693,1712814639044,-249.884851,0.00027397,2]
[322122694,1712814639053,-166.666666,0.00027397,2]
[322122695,1712814639062,-227.3158383,0.00027541,2]
[322122696,1712814639070,-208.48111995,0.00027755,2]
[322122697,1712814639079,-300.0,0.00028037,2]
[322122698,1712814639088,-300.0,0.00028037,2]
[322122699,1712814639097,-166.666666,0.00028038,2]
[322122700,1712814639106,-208.48111995,0.00028429,2]
[322122701,1712814639115,-166.666666,0.00028679,2]
[322122702,1712814639124,-177.645257,0.00029025,2]
[322122703,1712814639133,-876.40573108,0.0002908,4]
[322122704,1712814639142,-208.48111995,0.00029104,2]
[322122705,1712814639151,-269.31396444,0.0002916,2]
[322122706,1712814639160,-269.03377573,0.0002916,2]
[322122707,1712814639169,-253.14062729,0.0002916,2]
[322122708,1712814639178,-300.0,0.00029161,2]
[322122709,1712814639187,-16175.21101554,0.00029162,2]
[322122731,1712814642483,-2241.36847673,0.00029162,2]
[322122761,1712814643619,-640.79849235,0.00029162,2]
[322122872,1712815764126,-154.92253873,0.00025674,2]
[322122873,1712815764149,-154.92253873,0.00025674,2]
[322122874,1712815764173,-154.92253873,0.00025674,2]
[322122875,1712815764193,-518.5419639,0.00025675,2]
[322122876,1712815764216,-59008.25304668,0.00025675,2]
[322122877,1712815764237,-1964.94666504,0.00025676,2]
[322122878,1712815764261,-225.5768185,0.00025677,2]
[322122879,1712815764281,-389.80685397,0.00025678,2]
[322122880,1712815764301,-165.57639,0.0002576,2]
[322122881,1712815764322,-203.96205847,0.00026239,3]
[322122882,1712815764342,-300.0,0.00026241,2]
[322122883,1712815764363,-300.0,0.00026241,2]
[322122884,1712815764383,-245.13013663,0.00026242,2]
[322122885,1712815764403,-179.64211488,0.00026242,2]
[322122886,1712815764424,-294.14905566,0.00026242,2]
[322122887,1712815764443,-254.76511583,0.00026242,2]
[322122888,1712815764466,-2121.15236818,0.00026242,2]
[322122889,1712815764486,-229.27466344,0.00026242,2]
[322122890,1712815764506,-243.4689664,0.00026242,2]
[322122891,1712815764525,-1854.38399609,0.00026242,2]
[322122892,1712815764545,-246.63761013,0.00026242,2]
[322122893,1712815764565,-154.98450155,0.00026242,2]
[322122894,1712815764586,-167.06533239,0.00026242,2]
[322122895,1712815764606,-155.49310918,0.00026242,2]
[322122896,1712815764626,-4823.45509195,0.00026242,2]
[322122939,1712815832716,-524.95978901,0.00024141,2]
[322122941,1712815832727,-1048.29007362,0.00024142,2]
[322122943,1712815832736,-154.90705577,0.00025011,2]
[322122944,1712815832746,-300.0,0.00025011,2]
[322122945,1712815832755,-300.0,0.00025011,2]
[322122946,1712815832765,-5467.99008701,0.00025012,2]
[322122988,1712815838602,-621.17403756,0.00025012,2]
[322122989,1712815838625,-18810.83587543,0.00025012,2]
[322122991,1712815838636,-859.35134504,0.00025573,2]
[322122992,1712815838646,-4305.59034078,0.00025673,2]
[322122993,1712815838656,-157.434215,0.00026241,2]
[322122994,1712815838666,-500.0,0.00026241,2]
[322122995,1712815838675,-166.30230481,0.00026241,2]
[322122996,1712815838685,-326.16216447,0.00026241,2]
[322122997,1712815838694,-506.06399911,0.00026241,2]
[322122998,1712815838704,-2300.37815036,0.00026242,4]
[322122999,1712815838714,-8255.80267149,0.00026242,7]
[322123000,1712815838726,-7307.25241267,0.00026242,7]
[322123001,1712815838735,-154.92253873,0.00026242,2]
[322123002,1712815838746,-1159.7439023,0.00026242,2]
[322123003,1712815838757,-160.86128477,0.00026242,2]
[322123004,1712815838767,-157.34709437,0.00026242,2]
[322123005,1712815838777,-158.51515046,0.00026242,2]
[322123006,1712815838787,-181.27846716,0.00026242,2]
[322123007,1712815838796,-155.38658969,0.00026242,2]
[322123008,1712815838806,-155.38550979,0.00026242,2]
[322123009,1712815838815,-209.13909189,0.00026242,2]
[322123010,1712815838825,-213.64248224,0.00026242,2]
[322123011,1712815838834,-102.91654702,0.00026242,2]
[322123239,1712815844100,-433.88403155,0.00026241,2]
[322123240,1712815844111,-308.25625718,0.00026242,2]
[322123241,1712815844120,-291.67835239,0.00026242,2]
[322123242,1712815844130,-602.31911649,0.00026242,2]
[322123243,1712815844140,-245.59351282,0.00026242,2]
[322123244,1712815844151,-209.82604441,0.00026242,2]
[322123245,1712815844161,-1308.15892502,0.00026242,2]
[322123246,1712815844169,-406.71490912,0.00026242,2]
[322123247,1712815844179,-218.22626549,0.00026242,2]
[322123248,1712815844189,-216.45996331,0.00026242,2]
[322123249,1712815844198,-1671.38044396,0.00026242,2]
[322123250,1712815844207,-923.76277952,0.00026246,2]
[322123251,1712815844217,-166.78489596,0.000269,2]
[322123252,1712815844227,-317.3871486,0.00027047,2]
[322123253,1712815844236,-420.0,0.00027095,2]
[322123254,1712815844246,-166.623888,0.00027397,2]
[322123255,1712815844256,-159.567179,0.00027397,2]
[322123256,1712815844267,-166.666666,0.00027397,2]
[322123257,1712815844277,-166.78489596,0.00027405,2]
[322123258,1712815844287,-225.5768185,0.00027498,2]